[Event "*** SCC Grand Prix: Titled Tuesday Blitz"]
[Site "Chess.com"]
[Date "2020.09.29"]
[Round "3"]
[White "MatyChess1"]
[Black "josorio78"]
[Result "0-1"]
[WhiteElo "2510"]
[BlackElo "2331"]
[TimeControl "180+1"]
[EndTime "10:28:40 PDT"]
[Termination "josorio78 won on time"]

1. e4 {[%clk 0:02:51.9]} 1... c5 {[%clk 0:02:59.7]} 2. Nf3 {[%clk 0:02:51]} 2...
d6 {[%clk 0:02:59.7]} 3. Nc3 {[%clk 0:02:50.5]} 3... a6 {[%clk 0:02:59.2]} 4. g3
{[%clk 0:02:49.8]} 4... g6 {[%clk 0:02:57.7]} 5. d4 {[%clk 0:02:48.4]} 5... Bg7
{[%clk 0:02:58.6]} 6. dxc5 {[%clk 0:02:47.6]} 6... dxc5 {[%clk 0:02:51.7]} 7.
Qxd8+ {[%clk 0:02:47.1]} 7... Kxd8 {[%clk 0:02:52.6]} 8. Be3 {[%clk 0:02:46.2]}
8... Nd7 {[%clk 0:02:45.9]} 9. O-O-O {[%clk 0:02:41.9]} 9... Ke8 {[%clk
0:02:45.8]} 10. Nd5 {[%clk 0:02:41.4]} 10... Rb8 {[%clk 0:02:42.2]} 11. Bxc5
{[%clk 0:02:14.9]} 11... Bxb2+ {[%clk 0:02:27]} 12. Kxb2 {[%clk 0:02:11.3]}
12... Nxc5 {[%clk 0:02:27.2]} 13. Bg2 {[%clk 0:01:47]} 13... Nf6 {[%clk
0:02:14.3]} 14. Rhe1 {[%clk 0:01:24.1]} 14... Be6 {[%clk 0:02:01.5]} 15. Nc7+
{[%clk 0:01:13.7]} 15... Kf8 {[%clk 0:02:01.4]} 16. Nd4 {[%clk 0:01:14.6]} 16...
Bc4 {[%clk 0:01:43.4]} 17. Nd5 {[%clk 0:01:04.2]} 17... Ng4 {[%clk 0:01:28]} 18.
h3 {[%clk 0:00:37.8]} 18... Nxf2 {[%clk 0:00:58.2]} 19. Rd2 {[%clk 0:00:37.4]}
19... Nfxe4 {[%clk 0:00:57.8]} 20. Bxe4 {[%clk 0:00:33.7]} 20... Nxe4 {[%clk
0:00:57.9]} 21. Rxe4 {[%clk 0:00:34.6]} 21... Bxd5 {[%clk 0:00:58.1]} 22. Re3
{[%clk 0:00:31.6]} 22... e6 {[%clk 0:00:58]} 23. Rf2 {[%clk 0:00:31.1]} 23...
Kg7 {[%clk 0:00:55.1]} 24. Ne2 {[%clk 0:00:30.1]} 24... b5 {[%clk 0:00:52.6]}
25. Nf4 {[%clk 0:00:30.4]} 25... Rbd8 {[%clk 0:00:51.5]} 26. Rd2 {[%clk
0:00:30]} 26... Rd6 {[%clk 0:00:49.9]} 27. Red3 {[%clk 0:00:29.1]} 27... Rhd8
{[%clk 0:00:49.7]} 28. a4 {[%clk 0:00:29.7]} 28... bxa4 {[%clk 0:00:47.8]} 29.
c4 {[%clk 0:00:29]} 29... g5 {[%clk 0:00:30.7]} 30. Ne2 {[%clk 0:00:25.9]} 30...
Bxc4 {[%clk 0:00:25.2]} 31. Rxd6 {[%clk 0:00:24.9]} 31... Rxd6 {[%clk
0:00:25.7]} 32. Rxd6 {[%clk 0:00:25.2]} 32... Bxe2 {[%clk 0:00:26.6]} 33. Rd4
{[%clk 0:00:20.6]} 33... Bb5 {[%clk 0:00:26.1]} 34. Kc1 {[%clk 0:00:17.8]} 34...
f5 {[%clk 0:00:26.2]} 35. Kd2 {[%clk 0:00:17]} 35... h5 {[%clk 0:00:26.6]} 36.
Ke3 {[%clk 0:00:17.2]} 36... Kf6 {[%clk 0:00:27.1]} 37. Rd1 {[%clk 0:00:15.9]}
37... Ke5 {[%clk 0:00:26.1]} 38. Re1 {[%clk 0:00:15.6]} 38... Kd5 {[%clk
0:00:25.7]} 39. Rc1 {[%clk 0:00:14.1]} 39... Ke5 {[%clk 0:00:25.6]} 40. h4
{[%clk 0:00:14.3]} 40... f4+ {[%clk 0:00:25.3]} 41. gxf4+ {[%clk 0:00:13.7]}
41... gxf4+ {[%clk 0:00:25.5]} 42. Kf3 {[%clk 0:00:14]} 42... Kf5 {[%clk
0:00:25.9]} 43. Rg1 {[%clk 0:00:09.5]} 43... Bc6+ {[%clk 0:00:22.3]} 44. Kf2
{[%clk 0:00:09.8]} 44... a3 {[%clk 0:00:14.8]} 45. Ra1 {[%clk 0:00:09.6]} 45...
Kg4 {[%clk 0:00:13.8]} 46. Rxa3 {[%clk 0:00:09.1]} 46... Bb5 {[%clk 0:00:14.1]}
47. Ra1 {[%clk 0:00:04.6]} 47... Kxh4 {[%clk 0:00:14.1]} 48. Kf3 {[%clk
0:00:03]} 48... e5 {[%clk 0:00:13.3]} 49. Re1 {[%clk 0:00:02.9]} 49... Bc6+
{[%clk 0:00:12]} 50. Kf2 {[%clk 0:00:03.5]} 50... e4 {[%clk 0:00:11.9]} 51. Rc1
{[%clk 0:00:02.4]} 51... e3+ {[%clk 0:00:12]} 52. Ke2 {[%clk 0:00:02]} 52...
Bb5+ {[%clk 0:00:10.4]} 53. Ke1 {[%clk 0:00:02.2]} 53... Kg3 {[%clk 0:00:10.2]}
54. Rc8 {[%clk 0:00:01.9]} 54... f3 {[%clk 0:00:08.1]} 0-1

[Event "*** SCC Grand Prix: Titled Tuesday Blitz"]
[Site "Chess.com"]
[Date "2020.09.29"]
[Round "3"]
[White "ExtremeLearner"]
[Black "StellarChessPro"]
[Result "1-0"]
[WhiteElo "2300"]
[BlackElo "2491"]
[TimeControl "180+1"]
[EndTime "10:28:40 PDT"]
[Termination "ExtremeLearner won by resignation"]

1. d4 {[%clk 0:03:00.9]} 1... g6 {[%clk 0:02:59.1]} 2. Nf3 {[%clk 0:03:00.1]}
2... Bg7 {[%clk 0:02:59.7]} 3. g3 {[%clk 0:03:00.2]} 3... d6 {[%clk 0:03:00.4]}
4. Bg2 {[%clk 0:03:00.3]} 4... Nf6 {[%clk 0:03:01.1]} 5. O-O {[%clk 0:03:00.4]}
5... O-O {[%clk 0:03:01.8]} 6. b3 {[%clk 0:03:00.6]} 6... Nbd7 {[%clk
0:03:01.4]} 7. Bb2 {[%clk 0:03:01]} 7... Re8 {[%clk 0:03:00.6]} 8. Nbd2 {[%clk
0:02:59.5]} 8... c6 {[%clk 0:02:59.2]} 9. e4 {[%clk 0:02:59.7]} 9... e5 {[%clk
0:02:58.4]} 10. Re1 {[%clk 0:02:59]} 10... Qe7 {[%clk 0:02:55.9]} 11. Nc4 {[%clk
0:02:57.9]} 11... Rd8 {[%clk 0:02:27.6]} 12. dxe5 {[%clk 0:02:46.1]} 12... Nxe5
{[%clk 0:02:26.2]} 13. Nfxe5 {[%clk 0:02:44.8]} 13... dxe5 {[%clk 0:02:27.1]}
14. Qe2 {[%clk 0:02:37]} 14... Nd7 {[%clk 0:02:23.4]} 15. Rad1 {[%clk
0:02:34.4]} 15... f6 {[%clk 0:02:17.2]} 16. Ba3 {[%clk 0:02:32.7]} 16... c5
{[%clk 0:02:15.4]} 17. h4 {[%clk 0:02:21.9]} 17... b6 {[%clk 0:02:14.8]} 18. Ne3
{[%clk 0:02:19]} 18... Bb7 {[%clk 0:02:11]} 19. Nd5 {[%clk 0:02:18]} 19... Bxd5
{[%clk 0:02:10.3]} 20. Rxd5 {[%clk 0:02:16.3]} 20... Nf8 {[%clk 0:02:08.3]} 21.
c4 {[%clk 0:02:15.1]} 21... Ne6 {[%clk 0:02:07.1]} 22. Bb2 {[%clk 0:02:09.3]}
22... Nd4 {[%clk 0:02:05.6]} 23. Bxd4 {[%clk 0:02:07.2]} 23... cxd4 {[%clk
0:02:05.6]} 24. h5 {[%clk 0:01:59.9]} 24... g5 {[%clk 0:02:03.5]} 25. Qg4 {[%clk
0:01:58.9]} 25... Bf8 {[%clk 0:01:53]} 26. f4 {[%clk 0:01:57.7]} 26... h6 {[%clk
0:01:50.5]} 27. fxe5 {[%clk 0:01:55.5]} 27... fxe5 {[%clk 0:01:49.7]} 28. Qf5
{[%clk 0:01:54.5]} 28... Bg7 {[%clk 0:01:47.8]} 29. Bh3 {[%clk 0:01:47.9]} 29...
Rf8 {[%clk 0:01:43.4]} 30. Rd7 {[%clk 0:01:33.8]} 30... Rxf5 {[%clk 0:01:25.1]}
31. Rxe7 {[%clk 0:01:32.7]} 31... Rf3 {[%clk 0:01:23.7]} 32. Kg2 {[%clk
0:01:31.4]} 32... Rf6 {[%clk 0:01:12.2]} 33. Bf5 {[%clk 0:01:28.5]} 33... Rd6
{[%clk 0:01:08.7]} 34. Kf3 {[%clk 0:01:18.8]} 34... a5 {[%clk 0:01:07.7]} 35. a3
{[%clk 0:01:15.6]} 35... Bf8 {[%clk 0:01:04.2]} 36. Rb7 {[%clk 0:01:03.3]} 36...
d3 {[%clk 0:01:00.1]} 37. Ke3 {[%clk 0:01:00.1]} 37... Rad8 {[%clk 0:00:58.7]}
38. Kd2 {[%clk 0:00:55.1]} 38... Rd4 {[%clk 0:00:54.6]} 39. Be6+ {[%clk
0:00:52.3]} 39... Kh8 {[%clk 0:00:54.2]} 40. Rf1 {[%clk 0:00:48.8]} 40... R4d6
{[%clk 0:00:40.2]} 41. Bd5 {[%clk 0:00:43.8]} 41... Bg7 {[%clk 0:00:30.8]} 42.
Rff7 {[%clk 0:00:42.3]} 42... Rxd5 {[%clk 0:00:16.1]} 43. cxd5 {[%clk
0:00:40.1]} 43... Bf8 {[%clk 0:00:17]} 44. Kxd3 {[%clk 0:00:37.9]} 44... Bxa3
{[%clk 0:00:17.1]} 45. Rh7+ {[%clk 0:00:36.5]} 45... Kg8 {[%clk 0:00:17.6]} 46.
Rbg7+ {[%clk 0:00:36.7]} 46... Kf8 {[%clk 0:00:18.1]} 47. Rb7 {[%clk 0:00:35.7]}
47... Kg8 {[%clk 0:00:18.2]} 48. Rhg7+ {[%clk 0:00:35.8]} 48... Kf8 {[%clk
0:00:18.5]} 49. Rg6 {[%clk 0:00:35.6]} 49... Bb4 {[%clk 0:00:16.9]} 50. Rxh6
{[%clk 0:00:35.4]} 50... Kg8 {[%clk 0:00:17.8]} 51. Rg6+ {[%clk 0:00:35.1]}
51... Kf8 {[%clk 0:00:18.2]} 52. Rxg5 {[%clk 0:00:34.8]} 52... Rc8 {[%clk
0:00:18.8]} 53. Rf5+ {[%clk 0:00:34.1]} 53... Kg8 {[%clk 0:00:19.1]} 54. Rxe5
{[%clk 0:00:28.4]} 54... Rc3+ {[%clk 0:00:19.2]} 55. Ke2 {[%clk 0:00:28.8]}
55... Kf8 {[%clk 0:00:18.9]} 56. Rf5+ {[%clk 0:00:28.4]} 56... Kg8 {[%clk
0:00:18.6]} 57. Rff7 {[%clk 0:00:28]} 57... Rxg3 {[%clk 0:00:17.5]} 58. h6
{[%clk 0:00:26.4]} 58... Rg2+ {[%clk 0:00:12.3]} 59. Kf3 {[%clk 0:00:25.7]}
59... Rg6 {[%clk 0:00:12.1]} 60. h7+ {[%clk 0:00:25.5]} 1-0

[Event "*** SCC Grand Prix: Titled Tuesday Blitz"]
[Site "Chess.com"]
[Date "2020.09.29"]
[Round "3"]
[White "liczner"]
[Black "LogoCzar"]
[Result "1-0"]
[WhiteElo "2666"]
[BlackElo "2419"]
[TimeControl "180+1"]
[EndTime "10:28:42 PDT"]
[Termination "liczner won on time"]

1. e4 {[%clk 0:03:00.9]} 1... e5 {[%clk 0:02:57.4]} 2. Nf3 {[%clk 0:03:00.6]}
2... Nc6 {[%clk 0:02:56.1]} 3. Bb5 {[%clk 0:03:00.8]} 3... Nf6 {[%clk
0:02:55.4]} 4. O-O {[%clk 0:03:00.2]} 4... Nxe4 {[%clk 0:02:55.5]} 5. Re1 {[%clk
0:03:00.4]} 5... Nd6 {[%clk 0:02:55.6]} 6. Nxe5 {[%clk 0:03:00.3]} 6... Be7
{[%clk 0:02:55.5]} 7. Bf1 {[%clk 0:02:59.8]} 7... Nxe5 {[%clk 0:02:55.6]} 8.
Rxe5 {[%clk 0:03:00.7]} 8... O-O {[%clk 0:02:55.5]} 9. d4 {[%clk 0:03:01.2]}
9... Ne8 {[%clk 0:02:55.6]} 10. d5 {[%clk 0:02:45.4]} 10... Bc5 {[%clk
0:02:52.6]} 11. Nd2 {[%clk 0:02:29.4]} 11... d6 {[%clk 0:02:20.5]} 12. Re2
{[%clk 0:02:11.8]} 12... Bg4 {[%clk 0:02:15.8]} 13. Nf3 {[%clk 0:02:00.2]} 13...
Bxf3 {[%clk 0:02:13.2]} 14. gxf3 {[%clk 0:02:01.1]} 14... Qh4 {[%clk 0:02:03.5]}
15. Qd2 {[%clk 0:01:34.5]} 15... Nf6 {[%clk 0:02:02.3]} 16. c4 {[%clk
0:01:34.8]} 16... Rfe8 {[%clk 0:02:00]} 17. Qg5 {[%clk 0:01:26.5]} 17... Qxg5+
{[%clk 0:01:25.3]} 18. Bxg5 {[%clk 0:01:27.4]} 18... Rxe2 {[%clk 0:01:24.7]} 19.
Bxe2 {[%clk 0:01:28.3]} 19... Re8 {[%clk 0:01:24.4]} 20. Kf1 {[%clk 0:01:18.8]}
20... Bd4 {[%clk 0:01:23.2]} 21. Rd1 {[%clk 0:01:10.2]} 21... h6 {[%clk
0:01:14.2]} 22. Bf4 {[%clk 0:00:36.7]} 22... Be5 {[%clk 0:01:10]} 23. Be3 {[%clk
0:00:36.4]} 23... b6 {[%clk 0:00:58.5]} 24. b4 {[%clk 0:00:31.6]} 24... g5
{[%clk 0:00:53.7]} 25. h3 {[%clk 0:00:27.2]} 25... Nh5 {[%clk 0:00:52.2]} 26.
Bd3 {[%clk 0:00:27.5]} 26... Bf4 {[%clk 0:00:50.6]} 27. Bd4 {[%clk 0:00:23.9]}
27... Be5 {[%clk 0:00:46]} 28. Be3 {[%clk 0:00:24.3]} 28... Kg7 {[%clk
0:00:44.3]} 29. Bf5 {[%clk 0:00:22.4]} 29... Kf6 {[%clk 0:00:42.2]} 30. Bd7
{[%clk 0:00:20.9]} 30... Re7 {[%clk 0:00:42.2]} 31. Bg4 {[%clk 0:00:21]} 31...
Nf4 {[%clk 0:00:40.3]} 32. c5 {[%clk 0:00:18]} 32... Kg6 {[%clk 0:00:37.1]} 33.
Bc8 {[%clk 0:00:12.9]} 33... f5 {[%clk 0:00:35.1]} 34. Bxf4 {[%clk 0:00:09.6]}
34... Bxf4 {[%clk 0:00:33.5]} 35. cxb6 {[%clk 0:00:06.6]} 35... cxb6 {[%clk
0:00:32.9]} 36. Rd3 {[%clk 0:00:04.6]} 36... Rc7 {[%clk 0:00:31]} 37. Be6 {[%clk
0:00:05]} 37... Rc1+ {[%clk 0:00:28.4]} 38. Kg2 {[%clk 0:00:04.5]} 38... Rb1
{[%clk 0:00:21.9]} 39. Ra3 {[%clk 0:00:04.6]} 39... Rxb4 {[%clk 0:00:17.2]} 40.
Rxa7 {[%clk 0:00:05]} 40... Rb2 {[%clk 0:00:15.9]} 41. Kf1 {[%clk 0:00:05.4]}
41... Kh5 {[%clk 0:00:12.8]} 42. Bxf5 {[%clk 0:00:04.3]} 42... Be5 {[%clk
0:00:08.9]} 43. Rh7 {[%clk 0:00:04]} 43... Bd4 {[%clk 0:00:08.5]} 44. Ke1 {[%clk
0:00:01.4]} 44... Rxf2 {[%clk 0:00:07.1]} 45. Bg4+ {[%clk 0:00:01.2]} 45... Kg6
{[%clk 0:00:07]} 46. Rd7 {[%clk 0:00:01.7]} 46... Bc5 {[%clk 0:00:05.2]} 47. Re7
{[%clk 0:00:02]} 47... Rxa2 {[%clk 0:00:04.4]} 48. Re6+ {[%clk 0:00:02.9]} 48...
Kg7 {[%clk 0:00:04.4]} 49. Bh5 {[%clk 0:00:02.6]} 49... b5 {[%clk 0:00:03.8]}
50. Rg6+ {[%clk 0:00:02.7]} 50... Kh7 {[%clk 0:00:03.9]} 51. Re6 {[%clk
0:00:02.9]} 51... b4 {[%clk 0:00:04.1]} 52. Re7+ {[%clk 0:00:03.4]} 52... Kg8
{[%clk 0:00:03.9]} 53. Rb7 {[%clk 0:00:04.3]} 53... Ra3 {[%clk 0:00:03.4]} 54.
Kd2 {[%clk 0:00:03.3]} 54... b3 {[%clk 0:00:02.4]} 55. Kc3 {[%clk 0:00:02.3]}
55... Kf8 {[%clk 0:00:01.1]} 56. Bg4 {[%clk 0:00:02.7]} 56... Ke8 {[%clk
0:00:01.2]} 57. Be6 {[%clk 0:00:03.1]} 57... Kd8 {[%clk 0:00:01.4]} 58. Kc4
{[%clk 0:00:03.5]} 1-0

[Event "*** SCC Grand Prix: Titled Tuesday Blitz"]
[Site "Chess.com"]
[Date "2020.09.29"]
[Round "3"]
[White "TimKett"]
[Black "kreonx"]
[Result "1-0"]
[WhiteElo "2167"]
[BlackElo "2350"]
[TimeControl "180+1"]
[EndTime "10:28:44 PDT"]
[Termination "TimKett won by resignation"]

1. e4 {[%clk 0:03:00.9]} 1... c6 {[%clk 0:02:56.6]} 2. d4 {[%clk 0:02:59.7]}
2... d5 {[%clk 0:02:57.5]} 3. e5 {[%clk 0:02:59.5]} 3... c5 {[%clk 0:02:57.7]}
4. dxc5 {[%clk 0:02:57.9]} 4... Nc6 {[%clk 0:02:57.9]} 5. a3 {[%clk 0:02:53.5]}
5... e6 {[%clk 0:02:48.2]} 6. b4 {[%clk 0:02:52.8]} 6... Nxe5 {[%clk 0:02:47.3]}
7. Bb2 {[%clk 0:02:51.7]} 7... Nc6 {[%clk 0:02:46.5]} 8. Nf3 {[%clk 0:02:44.4]}
8... Nf6 {[%clk 0:02:46]} 9. Bd3 {[%clk 0:02:41.3]} 9... Be7 {[%clk 0:02:46.4]}
10. O-O {[%clk 0:02:41.1]} 10... O-O {[%clk 0:02:45.4]} 11. Nbd2 {[%clk
0:02:39.5]} 11... a5 {[%clk 0:02:34.1]} 12. Rb1 {[%clk 0:02:12.5]} 12... axb4
{[%clk 0:02:27.5]} 13. axb4 {[%clk 0:02:11.6]} 13... Qc7 {[%clk 0:02:12.3]} 14.
Re1 {[%clk 0:01:59.1]} 14... b6 {[%clk 0:02:08.4]} 15. b5 {[%clk 0:01:54.6]}
15... Na5 {[%clk 0:01:58.8]} 16. c6 {[%clk 0:01:53.4]} 16... Bd6 {[%clk
0:01:45.3]} 17. Ne5 {[%clk 0:01:48.8]} 17... Ne8 {[%clk 0:01:38.6]} 18. Qh5
{[%clk 0:01:44.7]} 18... h6 {[%clk 0:01:25.2]} 19. Ndf3 {[%clk 0:01:39.9]} 19...
Nc4 {[%clk 0:01:05.4]} 20. Nxc4 {[%clk 0:01:30.6]} 20... dxc4 {[%clk 0:01:06.3]}
21. Bxc4 {[%clk 0:01:30.6]} 21... Be7 {[%clk 0:00:51.4]} 22. Be5 {[%clk
0:01:25.7]} 22... Bd6 {[%clk 0:00:45]} 23. Rbd1 {[%clk 0:01:24.1]} 23... Bxe5
{[%clk 0:00:43]} 24. Nxe5 {[%clk 0:01:23.7]} 24... Nd6 {[%clk 0:00:40]} 25. Bd3
{[%clk 0:01:19.1]} 25... Ra4 {[%clk 0:00:18.4]} 26. Re3 {[%clk 0:01:16.4]} 26...
Nf5 {[%clk 0:00:17.7]} 27. Bxf5 {[%clk 0:01:08.7]} 27... exf5 {[%clk 0:00:18.6]}
28. Nd7 {[%clk 0:01:05.2]} 28... Rd8 {[%clk 0:00:14.4]} 29. Re7 {[%clk
0:01:02.5]} 29... g6 {[%clk 0:00:13.5]} 30. Qxh6 {[%clk 0:01:00.6]} 30... Bxd7
{[%clk 0:00:12.6]} 31. cxd7 {[%clk 0:00:50.9]} 31... Raa8 {[%clk 0:00:08.9]} 32.
Rde1 {[%clk 0:00:43.7]} 32... Qxd7 {[%clk 0:00:06.4]} 33. Rxd7 {[%clk 0:00:43]}
33... Rxd7 {[%clk 0:00:07.3]} 34. h4 {[%clk 0:00:41.7]} 34... Rc8 {[%clk
0:00:07]} 35. h5 {[%clk 0:00:40.3]} 35... Rd6 {[%clk 0:00:07.2]} 36. hxg6 {[%clk
0:00:39]} 36... Rxg6 {[%clk 0:00:08.1]} 37. Qf4 {[%clk 0:00:38.1]} 37... Rxc2
{[%clk 0:00:07.7]} 38. Qxf5 {[%clk 0:00:36.3]} 38... Rb2 {[%clk 0:00:06.5]} 39.
Re8+ {[%clk 0:00:35.5]} 39... Kg7 {[%clk 0:00:06.5]} 40. Qe5+ {[%clk 0:00:34.4]}
40... Rf6 {[%clk 0:00:06.5]} 41. Rg8+ {[%clk 0:00:33.1]} 41... Kh7 {[%clk
0:00:03.2]} 42. Qxf6 {[%clk 0:00:32.2]} 42... Rb1+ {[%clk 0:00:03.4]} 43. Kh2
{[%clk 0:00:30.8]} 43... Rh1+ {[%clk 0:00:04]} 44. Kg3 {[%clk 0:00:30.8]} 44...
Rh3+ {[%clk 0:00:04.6]} 45. Kf4 {[%clk 0:00:25]} 45... Rf3+ {[%clk 0:00:04.1]}
46. Ke5 {[%clk 0:00:20.4]} 46... Re3+ {[%clk 0:00:04.6]} 47. Kd6 {[%clk
0:00:19.6]} 47... Rd3+ {[%clk 0:00:03.8]} 48. Kc6 {[%clk 0:00:17.7]} 48... Rc3+
{[%clk 0:00:03.7]} 49. Kb7 {[%clk 0:00:12.7]} 49... Rc7+ {[%clk 0:00:03.6]} 50.
Kxb6 {[%clk 0:00:07.1]} 50... Rb7+ {[%clk 0:00:03.6]} 51. Ka6 {[%clk 0:00:06]}
51... Ra7+ {[%clk 0:00:03.8]} 52. Kb6 {[%clk 0:00:06.5]} 52... Ra6+ {[%clk
0:00:04]} 53. Kc5 {[%clk 0:00:06.8]} 53... Rxf6 {[%clk 0:00:03.9]} 54. b6 {[%clk
0:00:06.2]} 54... Kxg8 {[%clk 0:00:02.4]} 55. b7 {[%clk 0:00:06.2]} 55... Rf5+
{[%clk 0:00:03.3]} 56. Kc6 {[%clk 0:00:04.4]} 56... Rxf2 {[%clk 0:00:04.2]} 57.
b8=Q+ {[%clk 0:00:03.8]} 57... Kg7 {[%clk 0:00:05.1]} 58. Qg3+ {[%clk
0:00:03.5]} 58... Kf8 {[%clk 0:00:04.3]} 59. Qxf2 {[%clk 0:00:04.1]} 1-0

[Event "*** SCC Grand Prix: Titled Tuesday Blitz"]
[Site "Chess.com"]
[Date "2020.09.29"]
[Round "3"]
[White "picturesquecheck"]
[Black "Nara_Kh"]
[Result "0-1"]
[WhiteElo "2193"]
[BlackElo "2397"]
[TimeControl "180+1"]
[EndTime "10:28:45 PDT"]
[Termination "Nara_Kh won by resignation"]

1. e4 {[%clk 0:03:00.9]} 1... c5 {[%clk 0:02:59.5]} 2. Nf3 {[%clk 0:03:00.8]}
2... d6 {[%clk 0:02:59.3]} 3. d4 {[%clk 0:03:00.8]} 3... Nf6 {[%clk 0:02:59.8]}
4. Nc3 {[%clk 0:02:59.9]} 4... cxd4 {[%clk 0:03:00.2]} 5. Nxd4 {[%clk
0:03:00.8]} 5... a6 {[%clk 0:03:00.7]} 6. Be3 {[%clk 0:02:57.4]} 6... e5 {[%clk
0:03:00.3]} 7. Nb3 {[%clk 0:02:58]} 7... Be6 {[%clk 0:02:58.9]} 8. f3 {[%clk
0:02:58.3]} 8... h5 {[%clk 0:02:58.8]} 9. Qd2 {[%clk 0:02:58.8]} 9... Nbd7
{[%clk 0:02:58.9]} 10. O-O-O {[%clk 0:02:58.9]} 10... Rc8 {[%clk 0:02:57.6]} 11.
Nd5 {[%clk 0:02:57.9]} 11... Bxd5 {[%clk 0:02:51.4]} 12. exd5 {[%clk 0:02:58.8]}
12... Nb6 {[%clk 0:02:49.1]} 13. Bxb6 {[%clk 0:02:55.2]} 13... Qxb6 {[%clk
0:02:48.7]} 14. Kb1 {[%clk 0:02:54.4]} 14... g6 {[%clk 0:02:35.6]} 15. c4 {[%clk
0:02:51.3]} 15... Bh6 {[%clk 0:02:34.7]} 16. Qa5 {[%clk 0:02:50.3]} 16... Be3
{[%clk 0:02:30.4]} 17. Bd3 {[%clk 0:02:23.4]} 17... e4 {[%clk 0:02:03]} 18. fxe4
{[%clk 0:02:06.6]} 18... Ng4 {[%clk 0:01:59.1]} 19. Rhe1 {[%clk 0:01:31.1]}
19... O-O {[%clk 0:01:39.5]} 20. Qxb6 {[%clk 0:00:36.8]} 20... Bxb6 {[%clk
0:01:35.8]} 21. h3 {[%clk 0:00:36.9]} 21... Ne5 {[%clk 0:01:25.9]} 22. Be2
{[%clk 0:00:25.9]} 22... Nxc4 {[%clk 0:01:21.6]} 23. Bxc4 {[%clk 0:00:25.2]}
23... Rxc4 {[%clk 0:01:22.5]} 24. e5 {[%clk 0:00:25.7]} 24... dxe5 {[%clk
0:01:19.2]} 25. Rxe5 {[%clk 0:00:25.8]} 25... Rd8 {[%clk 0:01:18.4]} 26. Re2
{[%clk 0:00:25.1]} 26... a5 {[%clk 0:01:16.7]} 27. d6 {[%clk 0:00:22.5]} 27...
a4 {[%clk 0:01:16.1]} 28. Nc1 {[%clk 0:00:22.6]} 28... Bd4 {[%clk 0:01:01.5]}
29. Red2 {[%clk 0:00:20.5]} 29... Bf6 {[%clk 0:00:59.6]} 30. d7 {[%clk
0:00:19.9]} 30... Kg7 {[%clk 0:00:57.8]} 31. Re2 {[%clk 0:00:17.9]} 31... Rc7
{[%clk 0:00:52.2]} 32. Red2 {[%clk 0:00:18.1]} 32... b5 {[%clk 0:00:52.2]} 33.
Rd5 {[%clk 0:00:17.8]} 33... b4 {[%clk 0:00:49.9]} 34. Ne2 {[%clk 0:00:18]}
34... a3 {[%clk 0:00:40.7]} 35. b3 {[%clk 0:00:18]} 35... Kf8 {[%clk 0:00:34.1]}
36. Nd4 {[%clk 0:00:16.3]} 36... Ke7 {[%clk 0:00:11.3]} 37. Re1+ {[%clk
0:00:15.8]} 37... Kf8 {[%clk 0:00:11.7]} 38. Rd1 {[%clk 0:00:16.7]} 38... Kg7
{[%clk 0:00:12.1]} 39. Nb5 {[%clk 0:00:16]} 39... Rb7 {[%clk 0:00:11.9]} 40. Nd6
{[%clk 0:00:15.1]} 40... Rbxd7 {[%clk 0:00:12]} 41. Nf5+ {[%clk 0:00:15]} 41...
gxf5 {[%clk 0:00:11.8]} 42. Rxd7 {[%clk 0:00:15.9]} 42... Re8 {[%clk 0:00:12.2]}
43. R7d5 {[%clk 0:00:14.8]} 43... Re2 {[%clk 0:00:12.1]} 44. g4 {[%clk
0:00:14.4]} 44... Rb2+ {[%clk 0:00:12]} 45. Kc1 {[%clk 0:00:13.3]} 45... fxg4
{[%clk 0:00:12.4]} 46. hxg4 {[%clk 0:00:13.2]} 46... Rxa2 {[%clk 0:00:11.9]} 47.
g5 {[%clk 0:00:11.8]} 47... Bb2+ {[%clk 0:00:11.4]} 48. Kb1 {[%clk 0:00:11.1]}
48... Ra1+ {[%clk 0:00:11.7]} 49. Kc2 {[%clk 0:00:11.4]} 49... Rxd1 {[%clk
0:00:11.1]} 50. Rxd1 {[%clk 0:00:12.3]} 50... Kg6 {[%clk 0:00:11.7]} 51. Rg1
{[%clk 0:00:12]} 51... h4 {[%clk 0:00:11.8]} 52. Rh1 {[%clk 0:00:12]} 52... Kxg5
{[%clk 0:00:11.6]} 53. Rf1 {[%clk 0:00:12.6]} 53... f5 {[%clk 0:00:11.6]} 54.
Rg1+ {[%clk 0:00:12.4]} 54... Kf4 {[%clk 0:00:11.7]} 55. Rf1+ {[%clk 0:00:12.7]}
55... Kg4 {[%clk 0:00:12.1]} 56. Rg1+ {[%clk 0:00:13]} 56... Kh3 {[%clk
0:00:12.3]} 57. Rf1 {[%clk 0:00:13.4]} 57... Kg4 {[%clk 0:00:12.2]} 58. Rg1+
{[%clk 0:00:13.4]} 58... Kf3 {[%clk 0:00:12.5]} 59. Rf1+ {[%clk 0:00:13.8]}
59... Kg2 {[%clk 0:00:12.9]} 60. Rxf5 {[%clk 0:00:13.8]} 60... h3 {[%clk
0:00:13.4]} 61. Rg5+ {[%clk 0:00:14.3]} 61... Kf3 {[%clk 0:00:13.3]} 62. Rh5
{[%clk 0:00:14.2]} 62... Kg4 {[%clk 0:00:13.6]} 63. Rb5 {[%clk 0:00:13.3]} 63...
h2 {[%clk 0:00:13.3]} 64. Rxb4+ {[%clk 0:00:13.8]} 64... Kg3 {[%clk 0:00:13.8]}
65. Rb8 {[%clk 0:00:13.6]} 65... h1=Q {[%clk 0:00:13.8]} 66. Rg8+ {[%clk
0:00:14.5]} 66... Kf4 {[%clk 0:00:14]} 67. Rf8+ {[%clk 0:00:14.4]} 67... Ke5
{[%clk 0:00:14.3]} 0-1